[Event "POL-chT 2nd League-3 2020"]
[Site "Poronin"]
[Date "2020.09.08"]
[Round "4.3"]
[White "Malicka, Maria"]
[Black "Garbowski, Jakub"]
[Result "1-0"]
[ECO "B81"]
[WhiteElo "2256"]
[BlackElo "2139"]
[Annotator "ChessBase"]
[PlyCount "102"]
[EventDate "2020.09.05"]
[EventType "team-tourn"]
[EventCountry "POL"]
[SourceTitle "playchess.com"]
[Source "ChessBase"]
[SourceQuality "1"]
[TimeControl "40/5400+30:900+30"]

1. e4 {[%emt 0:00:00]} c5 {[%emt 0:00:00]} 2. Nf3 {[%emt 0:00:00]} e6 {[%emt 0:00:00]} 3. d4 {[%emt 0:00:00]} cxd4 {[%emt 0:00:00]} 4. Nxd4 {[%emt 0:00:00]} Nf6 {[%emt 0:00:08]} 5. Nc3 {[%emt 0:00:00]} d6 {[%emt 0:00:08]} 6. g4 {[%emt 0:00:00]} e5 {[%emt 0:00:29]} 7. Nf5 {[%emt 0:03:16]} h5 {[%emt 0:01:05]} 8. Bg5 {[%emt 0:09:05]} Nc6 {[%emt 0:20:29]} 9. Bxf6 {[%emt 0:11:42]} Qxf6 {[%emt 0:02:04]} 10. Nd5 {[%emt 0:00:07]} Qd8 {[%emt 0:00:37]} 11. gxh5 {[%emt 0:04:44]} Be6 {[%emt 0:09:42]} 12. c3 {[%emt 0:05:52]} Qd7 {[%emt 0:10:01]} 13. Qf3 {[%emt 0:10:34]} O-O-O {[%emt 0:03:35]} 14. O-O-O {[%emt 0:03:22]} g6 {[%emt 0:04:53]} 15. Nf6 {[%emt 0:04:16]} Qc7 {[%emt 0:05:28]} 16. Ne3 {[%emt 0:00:24]} Nd4 {[%emt 0:08:18]} 17. Qg3 {[%emt 0:11:38]} Bxa2 {[%emt 0:11:41]} 18. Nfd5 {[%emt 0:02:16]} Bxd5 {[%emt 0:06:56]} 19. Nxd5 {[%emt 0:00:49]} Qc6 {[%emt 0:01:42]} 20. hxg6 {[%emt 0:05:37]} fxg6 {[%emt 0:01:25]} 21. Kb1 {[%emt 0:01:29]} Nb3 {[%emt 0:04:13]} 22. Qxg6 {[%emt 0:01:06]} Kb8 {[%emt 0:02:46]} 23. Ne3 {[%emt 0:10:10]} Bh6 {[%emt 0:02:36]} 24. Bc4 {[%emt 0:00:11]} Bxe3 {[%emt 0:02:00]} 25. Bxb3 {[%emt 0:02:10]} Bxf2 {[%emt 0:00:30]} 26. Rd2 {[%emt 0:01:25]} Qb6 {[%emt 0:00:33]} 27. Bd5 {[%emt 0:00:57]} Rdf8 {[%emt 0:01:11]} 28. Qg7 {[%emt 0:02:13]} Qc7 {[%emt 0:00:15]} 29. Qg2 {[%emt 0:00:11]} Be3 {[%emt 0:00:33]} 30. Re2 {[%emt 0:00:22]} Bf4 {[%emt 0:00:31]} 31. Qg4 {[%emt 0:02:30]} Rh6 {[%emt 0:00:53]} 32. h4 {[%emt 0:02:20]} Qh7 {[%emt 0:00:39]} 33. Rg2 {[%emt 0:00:43]} Rh8 {[%emt 0:00:29]} 34. Qg7 {[%emt 0:01:22]} Qxg7 {[%emt 0:00:28]} 35. Rxg7 {[%emt 0:00:02]} R8h7 {[%emt 0:00:09]} 36. Rxh7 {[%emt 0:00:41]} Rxh7 {[%emt 0:00:01]} 37. h5 {[%emt 0:00:08]} Kc8 {[%emt 0:01:03]} 38. Kc2 {[%emt 0:00:47]} Kd8 {[%emt 0:00:45]} 39. Kd3 {[%emt 0:00:47]} Ke8 {[%emt 0:00:34]} 40. Be6 {[%emt 0:00:00]} Ke7 {[%emt 0:00:00]} 41. Bf5 {[%emt 0:02:11]} Rh8 {[%emt 0:02:59]} 42. Kc4 {[%emt 0:01:03]} d5+ {[%emt 0:12:31]} 43. exd5 {[%emt 0:06:21]} Kd6 {[%emt 0:01:06]} 44. Be4 {[%emt 0:00:17]} a6 {[%emt 0:00:20]} 45. Bf3 {[%emt 0:01:20]} Rf8 {[%emt 0:01:04]} 46. h6 {[%emt 0:02:10]} b5+ {[%emt 0:00:34]} 47. Kd3 {[%emt 0:02:45]} Bg5 {[%emt 0:00:27]} 48. Rh3 {[%emt 0:01:27]} Rf4 {[%emt 0:00:33]} 49. h7 {[%emt 0:00:21]} Bf6 {[%emt 0:00:06]} 50. Rh6 {[%emt 0:01:43]} Rxf3+ {[%emt 0:00:51]} 51. Ke2 {[%emt 0:00:05]} Kxd5 1-0

[Event "POL-chT 2nd League-3 2020"]
[Site "Poronin"]
[Date "2020.09.08"]
[Round "4.4"]
[White "Stachanczyk, Jacek"]
[Black "Jarzebowski, Kacper"]
[Result "0-1"]
[ECO "C63"]
[WhiteElo "2156"]
[BlackElo "2061"]
[Annotator "ChessBase"]
[PlyCount "40"]
[EventDate "2020.09.05"]
[EventType "team-tourn"]
[EventCountry "POL"]
[SourceTitle "playchess.com"]
[Source "ChessBase"]
[SourceQuality "1"]
[TimeControl "40/5400+30:900+30"]

1. e4 {[%emt 0:00:00]} e5 {[%emt 0:00:00]} 2. Nf3 {[%emt 0:00:00]} Nc6 {[%emt 0:00:00]} 3. Bb5 {[%emt 0:00:00]} f5 {[%emt 0:00:00]} 4. Nc3 {[%emt 0:00:00]} fxe4 {[%emt 0:00:00]} 5. Nxe4 {[%emt 0:00:00]} Nf6 {[%emt 0:00:04]} 6. Nxf6+ {[%emt 0:03:56]} Qxf6 {[%emt 0:00:11]} 7. Qe2 {[%emt 0:01:00]} Be7 {[%emt 0:00:10]} 8. Bxc6 {[%emt 0:01:43]} dxc6 {[%emt 0:00:30]} 9. Nxe5 {[%emt 0:00:11]} O-O {[%emt 0:00:07]} 10. d4 {[%emt 0:04:13]} Bd6 {[%emt 0:01:04]} 11. O-O {[%emt 0:16:41]} c5 {[%emt 0:01:03]} 12. c3 {[%emt 0:01:32]} cxd4 {[%emt 0:00:25]} 13. cxd4 {[%emt 0:00:06]} Be6 {[%emt 0:09:26]} 14. f4 {[%emt 0:00:39]} Rae8 {[%emt 0:02:04]} 15. Be3 {[%emt 0:06:37]} Bd5 {[%emt 0:12:16]} 16. a3 {[%emt 0:07:28]} Qf5 {[%emt 0:01:00]} 17. Rae1 {[%emt 0:01:05]} c6 {[%emt 0:03:49]} 18. Rf2 {[%emt 0:03:02]} Bc7 {[%emt 0:11:29]} 19. b4 {[%emt 0:07:16]} b5 {[%emt 0:02:00]} 20. Qg4 {[%emt 0:06:17]} Rxe5 {[%emt 0:02:06]} 0-1

[Event "POL-chT 2nd League-3 2020"]
[Site "Poronin"]
[Date "2020.09.08"]
[Round "4.5"]
[White "Dalkowski, Rafal"]
[Black "Rosicki, Marcin"]
[Result "1/2-1/2"]
[ECO "D52"]
[WhiteElo "1859"]
[BlackElo "2039"]
[Annotator "NA"]
[PlyCount "51"]
[EventDate "2020.09.05"]
[EventType "team-tourn"]
[EventCountry "POL"]
[SourceTitle "playchess.com"]
[Source "ChessBase"]
[SourceQuality "1"]
[TimeControl "40/5400+30:900+30"]

1. d4 {[%emt 0:00:00]} d5 {[%emt 0:00:00]} 2. c4 {[%emt 0:00:00]} c6 {[%emt 0:00:00]} 3. Nc3 {[%emt 0:00:00]} Nf6 {[%emt 0:00:10]} 4. Nf3 {[%emt 0:00:00]} e6 {[%emt 0:00:17]} 5. Bg5 {[%emt 0:00:15]} Nbd7 {[%emt 0:00:22]} 6. e3 {[%emt 0:01:32]} Be7 {[%emt 0:00:06]} 7. Bd3 {[%emt 0:02:35]} O-O {[%emt 0:00:07]} 8. O-O {[%emt 0:00:05]} dxc4 {[%emt 0:00:19]} 9. Bxc4 {[%emt 0:00:06]} b5 {[%emt 0:00:05]} 10. Bd3 {[%emt 0:00:22]} Bb7 {[%emt 0:00:06]} 11. Qe2 {[%emt 0:01:05]} a6 {[%emt 0:00:06]} 12. Rfd1 {[%emt 0:00:42]} Qc7 {[%emt 0:01:18]} 13. e4 {[%emt 0:08:58]} b4 $16 {[%emt 0:11:31]} (13... h6 $14 14. Bxf6 Nxf6) 14. Na4 {[%emt 0:10:56]} e5 {[%emt 0:14:17]} 15. dxe5 {[%emt 0:12:12]} Nxe5 {[%emt 0:00:07]} 16. Nxe5 {[%emt 0:00:31]} Qxe5 {[%emt 0:00:05]} 17. Bh4 {[%emt 0:02:09]} Rfe8 {[%emt 0:17:53]} 18. Nb6 {[%emt 0:04:10]} Rad8 {[%emt 0:00:48]} 19. Bg3 {[%emt 0:01:26]} Qh5 {[%emt 0:07:07]} 20. Qxh5 {[%emt 0:05:01]} Nxh5 {[%emt 0:00:05]} 21. Bc7 {[%emt 0:00:35]} Rd4 {[%emt 0:00:05]} 22. Be5 {[%emt 0:03:02]} Rdd8 {[%emt 0:00:44]} 23. Bc7 {[%emt 0:01:37]} Rd4 {[%emt 0:00:04]} 24. Be5 {[%emt 0:02:49]} Rdd8 {[%emt 0:00:10]} 25. Bc7 {[%emt 0:01:08]} Rd4 {[%emt 0:00:07]} 26. Be5 1/2-1/2

[Event "POL-chT 2nd League-3 2020"]
[Site "Poronin"]
[Date "2020.09.08"]
[Round "4.6"]
[White "Pluta, Natalia"]
[Black "Tarka, Aleksandra"]
[Result "1/2-1/2"]
[ECO "A10"]
[WhiteElo "1844"]
[BlackElo "1586"]
[Annotator "NA"]
[PlyCount "176"]
[EventDate "2020.09.05"]
[EventType "team-tourn"]
[EventCountry "POL"]
[SourceTitle "playchess.com"]
[Source "ChessBase"]
[SourceQuality "1"]
[TimeControl "40/5400+30:900+30"]

1. c4 {[%emt 0:00:00]} f5 {[%emt 0:00:00]} 2. g3 {[%emt 0:00:00]} Nf6 {[%emt 0:00:00]} 3. Bg2 {[%emt 0:00:09]} g6 {[%emt 0:00:00]} 4. Nc3 {[%emt 0:00:09]} Bg7 {[%emt 0:00:07]} 5. e3 {[%emt 0:00:19]} d6 {[%emt 0:00:58]} 6. d4 {[%emt 0:01:27]} O-O {[%emt 0:00:41]} 7. Nge2 {[%emt 0:02:34]} e6 {[%emt 0:06:38]} 8. b4 {[%emt 0:04:09]} Qe7 {[%emt 0:11:47]} 9. O-O {[%emt 0:02:34]} c6 {[%emt 0:08:40]} 10. Qb3 {[%emt 0:04:19]} e5 {[%emt 0:07:15]} 11. dxe5 {[%emt 0:07:59]} dxe5 {[%emt 0:02:06]} 12. b5 {[%emt 0:05:34]} Re8 {[%emt 0:12:56]} 13. Ba3 {[%emt 0:01:26]} Qf7 {[%emt 0:00:51]} 14. Rac1 {[%emt 0:02:05]} Be6 {[%emt 0:01:38]} 15. Na4 {[%emt 0:00:48]} e4 {[%emt 0:14:22]} 16. Nd4 {[%emt 0:07:55]} cxb5 {[%emt 0:02:53]} 17. Nxb5 {[%emt 0:02:49]} Bf8 {[%emt 0:07:19]} 18. Bxf8 {[%emt 0:03:14]} Rxf8 {[%emt 0:00:09]} 19. Nd6 {[%emt 0:01:19]} Qc7 {[%emt 0:03:14]} 20. Nxb7 {[%emt 0:05:11]} Nbd7 {[%emt 0:01:50]} 21. Rc2 {[%emt 0:05:51]} Rab8 {[%emt 0:01:05]} 22. Rb1 {[%emt 0:00:08]} Ne8 {[%emt 0:01:48]} 23. Rd2 {[%emt 0:09:27]} Rf7 {[%emt 0:07:23]} 24. Bf1 {[%emt 0:01:33]} Ne5 {[%emt 0:01:25]} 25. Rdb2 {[%emt 0:15:42]} Bc8 {[%emt 0:02:21]} 26. Nac5 {[%emt 0:01:46]} Qc6 {[%emt 0:03:34]} 27. Qb5 {[%emt 0:02:53]} Qxb5 {[%emt 0:01:35]} 28. Rxb5 {[%emt 0:00:10]} Bxb7 {[%emt 0:00:35]} 29. Rxb7 {[%emt 0:00:14]} Rbxb7 {[%emt 0:00:32]} 30. Rxb7 {[%emt 0:00:05]} Rxb7 {[%emt 0:00:39]} 31. Nxb7 {[%emt 0:00:06]} Nf3+ {[%emt 0:00:31]} 32. Kg2 {[%emt 0:00:53]} Ne1+ {[%emt 0:00:19]} 33. Kg1 {[%emt 0:00:57]} Nf3+ {[%emt 0:00:07]} 34. Kh1 {[%emt 0:00:37]} Kf7 {[%emt 0:01:04]} 35. Nd8+ {[%emt 0:01:10]} Kf6 {[%emt 0:00:32]} 36. Nc6 {[%emt 0:02:58]} Nd2 {[%emt 0:00:25]} 37. Be2 {[%emt 0:00:30]} a6 {[%emt 0:00:36]} 38. Kg2 {[%emt 0:03:46]} Nc7 {[%emt 0:00:27]} 39. Nd4 {[%emt 0:00:51]} Ke5 {[%emt 0:00:29]} 40. Nb3 {[%emt 0:00:00]} Nb1 {[%emt 0:00:00]} 41. Kf1 {[%emt 0:08:34]} Nc3 {[%emt 0:01:51]} 42. a3 {[%emt 0:02:41]} Na4 {[%emt 0:03:53]} 43. Ke1 {[%emt 0:00:54]} Ne6 {[%emt 0:03:52]} 44. Kd2 {[%emt 0:01:23]} Kd6 {[%emt 0:02:49]} 45. Kc2 {[%emt 0:01:05]} Ke5 {[%emt 0:00:40]} 46. Na5 {[%emt 0:02:33]} Nec5 {[%emt 0:02:00]} 47. Nc6+ {[%emt 0:00:51]} Kd6 {[%emt 0:00:15]} 48. Nd4 {[%emt 0:00:18]} a5 {[%emt 0:02:03]} 49. g4 {[%emt 0:00:27]} fxg4 {[%emt 0:01:00]} 50. Bxg4 {[%emt 0:00:14]} Nb6 {[%emt 0:00:30]} 51. Be2 {[%emt 0:01:01]} Ncd7 {[%emt 0:00:42]} 52. Kc3 {[%emt 0:02:07]} Nc5 {[%emt 0:00:37]} 53. Bd1 {[%emt 0:01:09]} Nd3 {[%emt 0:01:34]} 54. f3 {[%emt 0:01:05]} Nc5 {[%emt 0:00:39]} 55. Bc2 {[%emt 0:00:55]} exf3 {[%emt 0:00:19]} 56. Nxf3 {[%emt 0:00:08]} Ne6 {[%emt 0:00:38]} 57. Nd4 {[%emt 0:00:55]} Nc5 {[%emt 0:00:16]} 58. Nf3 {[%emt 0:00:55]} Ne6 {[%emt 0:00:18]} 59. h4 {[%emt 0:01:05]} Nd7 {[%emt 0:00:49]} 60. h5 {[%emt 0:00:22]} gxh5 {[%emt 0:00:26]} 61. Bxh7 {[%emt 0:00:06]} Ndc5 {[%emt 0:00:35]} 62. Bg6 {[%emt 0:00:27]} Na4+ {[%emt 0:00:40]} 63. Kb3 {[%emt 0:00:41]} Nac5+ {[%emt 0:00:18]} 64. Kc2 {[%emt 0:00:38]} Ng7 {[%emt 0:00:29]} 65. e4 {[%emt 0:01:04]} h4 {[%emt 0:00:47]} 66. Nxh4 {[%emt 0:00:24]} Ke5 {[%emt 0:00:11]} 67. Nf3+ {[%emt 0:00:23]} Kf4 {[%emt 0:00:24]} 68. Nd2 {[%emt 0:00:33]} Nge6 {[%emt 0:00:33]} 69. Kc3 {[%emt 0:00:34]} Na4+ {[%emt 0:00:35]} 70. Kd3 {[%emt 0:00:32]} Nac5+ {[%emt 0:00:08]} 71. Kc2 {[%emt 0:00:11]} Nd4+ {[%emt 0:00:54]} 72. Kb2 {[%emt 0:00:33]} Ke5 {[%emt 0:00:44]} 73. Kc3 {[%emt 0:00:27]} Ne2+ {[%emt 0:00:26]} 74. Kb2 {[%emt 0:00:37]} Nd4 {[%emt 0:00:18]} 75. Bh7 {[%emt 0:00:27]} Kf4 {[%emt 0:00:25]} 76. Bf5 {[%emt 0:00:36]} Ke5 {[%emt 0:00:16]} 77. Nb1 {[%emt 0:01:14]} Nxe4 {[%emt 0:00:45]} 78. Bxe4 {[%emt 0:00:08]} Kxe4 {[%emt 0:00:05]} 79. Kc3 {[%emt 0:00:25]} Ne2+ {[%emt 0:01:15]} 80. Kb3 {[%emt 0:00:05]} Kd4 {[%emt 0:00:37]} 81. Nd2 {[%emt 0:00:22]} Nc3 {[%emt 0:00:25]} 82. Nf3+ {[%emt 0:00:25]} Kd3 {[%emt 0:00:26]} 83. c5 {[%emt 0:00:15]} Nd5 {[%emt 0:00:30]} 84. c6 {[%emt 0:00:52]} Ke4 {[%emt 0:00:39]} 85. Nd2+ {[%emt 0:00:13]} Kd4 {[%emt 0:00:16]} 86. Nc4 {[%emt 0:00:44]} a4+ {[%emt 0:00:17]} 87. Kxa4 {[%emt 0:00:05]} Kxc4 {[%emt 0:00:11]} 88. Ka5 {[%emt 0:00:08]} Kc5 {[%emt 0:00:14]} 1/2-1/2

[Event "POL-chT 2nd League-3 2020"]
[Site "Poronin"]
[Date "2020.09.08"]
[Round "4.9"]
[White "Bajerlein, Dawid"]
[Black "Kowalak, Piotr"]
[Result "1/2-1/2"]
[ECO "E32"]
[WhiteElo "2037"]
[BlackElo "2105"]
[Annotator "ChessBase"]
[PlyCount "20"]
[EventDate "2020.09.05"]
[EventType "team-tourn"]
[EventCountry "POL"]
[SourceTitle "playchess.com"]
[Source "ChessBase"]
[SourceQuality "1"]
[TimeControl "40/5400+30:900+30"]

1. d4 {[%emt 0:00:00]} Nf6 {[%emt 0:00:00]} 2. c4 {[%emt 0:00:00]} e6 {[%emt 0:00:00]} 3. Nc3 {[%emt 0:00:00]} Bb4 {[%emt 0:00:11]} 4. Qc2 {[%emt 0:00:06]} O-O {[%emt 0:00:23]} 5. Bg5 {[%emt 0:02:34]} c5 {[%emt 0:03:42]} 6. dxc5 {[%emt 0:03:20]} Na6 {[%emt 0:40:13]} 7. a3 {[%emt 0:06:06]} Bxc3+ {[%emt 0:02:09]} 8. Qxc3 {[%emt 0:00:20]} Nxc5 {[%emt 0:00:38]} 9. Bxf6 {[%emt 0:08:45]} Qxf6 {[%emt 0:00:29]} 10. Qxf6 {[%emt 0:08:58]} gxf6 {[%emt 0:00:11]} 1/2-1/2

[Event "POL-chT 2nd League-3 2020"]
[Site "Poronin"]
[Date "2020.09.08"]
[Round "4.10"]
[White "Madera, Mateusz"]
[Black "Hemmerling, Jaroslaw"]
[Result "1-0"]
[ECO "C00"]
[WhiteElo "1945"]
[BlackElo "1938"]
[Annotator "ChessBase"]
[PlyCount "97"]
[EventDate "2020.09.05"]
[EventType "team-tourn"]
[EventCountry "POL"]
[SourceTitle "playchess.com"]
[Source "ChessBase"]
[SourceQuality "1"]
[TimeControl "40/5400+30:900+30"]

1. e4 {[%emt 0:00:00]} e6 {[%emt 0:00:00]} 2. d4 {[%emt 0:00:00]} d5 {[%emt 0:00:00]} 3. Bd3 {[%emt 0:00:00]} dxe4 {[%emt 0:00:00]} 4. Bxe4 {[%emt 0:00:00]} Nf6 {[%emt 0:00:06]} 5. Bf3 {[%emt 0:00:00]} c5 {[%emt 0:00:13]} 6. Ne2 {[%emt 0:00:00]} Nc6 {[%emt 0:00:12]} 7. Be3 {[%emt 0:00:00]} e5 {[%emt 0:00:21]} 8. Bxc6+ {[%emt 0:18:49]} bxc6 {[%emt 0:00:07]} 9. dxe5 {[%emt 0:14:02]} Qxd1+ {[%emt 0:00:27]} 10. Kxd1 {[%emt 0:00:00]} Ng4 {[%emt 0:00:15]} 11. Nbc3 {[%emt 0:05:01]} Nxe5 {[%emt 0:09:50]} 12. Bf4 {[%emt 0:17:50]} Ng6 {[%emt 0:04:58]} 13. Bc7 {[%emt 0:06:53]} Be7 {[%emt 0:01:53]} 14. Kd2 {[%emt 0:03:02]} Be6 {[%emt 0:10:27]} 15. Rad1 {[%emt 0:02:57]} Rc8 {[%emt 0:00:03]} 16. Bg3 {[%emt 0:00:43]} h5 {[%emt 0:07:13]} 17. h4 {[%emt 0:02:21]} O-O {[%emt 0:00:24]} 18. Kc1 {[%emt 0:00:01]} Rfd8 {[%emt 0:00:47]} 19. Rxd8+ {[%emt 0:06:58]} Rxd8 {[%emt 0:00:09]} 20. Nf4 {[%emt 0:03:00]} Nxf4 {[%emt 0:08:40]} 21. Bxf4 {[%emt 0:00:03]} Rd4 {[%emt 0:00:59]} 22. g3 {[%emt 0:01:07]} Bf5 {[%emt 0:09:03]} 23. Re1 {[%emt 0:01:31]} Kf8 {[%emt 0:08:23]} 24. Be5 {[%emt 0:00:16]} Rd7 {[%emt 0:00:34]} 25. Ne4 {[%emt 0:04:02]} f6 {[%emt 0:02:05]} 26. Bf4 {[%emt 0:01:34]} Rd4 {[%emt 0:03:28]} 27. Nd2 {[%emt 0:01:52]} Kf7 {[%emt 0:05:56]} 28. Be3 {[%emt 0:00:33]} Ra4 {[%emt 0:00:12]} 29. Kb1 {[%emt 0:01:23]} Be6 {[%emt 0:09:01]} 30. b3 {[%emt 0:00:27]} Rg4 {[%emt 0:02:33]} 31. Bf4 {[%emt 0:01:19]} c4 {[%emt 0:12:22]} 32. Nxc4 {[%emt 0:03:01]} Bxc4 {[%emt 0:01:29]} 33. bxc4 {[%emt 0:00:01]} Bb4 {[%emt 0:01:42]} 34. Re2 {[%emt 0:00:23]} Bc3 {[%emt 0:00:33]} 35. Kc1 {[%emt 0:01:57]} Be5 {[%emt 0:01:04]} 36. Bxe5 {[%emt 0:00:12]} fxe5 {[%emt 0:00:01]} 37. Rxe5 {[%emt 0:00:01]} Rxc4 {[%emt 0:02:04]} 38. Rxh5 {[%emt 0:01:57]} Ra4 {[%emt 0:00:03]} 39. Kb2 {[%emt 0:00:40]} Re4 {[%emt 0:00:36]} 40. Ra5 {[%emt 0:00:00]} Re7 {[%emt 0:00:00]} 41. Ra6 {[%emt 0:01:21]} Rc7 {[%emt 0:00:50]} 42. Kc3 {[%emt 0:02:31]} Ke6 {[%emt 0:01:32]} 43. Kd4 {[%emt 0:01:34]} Kd6 {[%emt 0:00:52]} 44. c4 {[%emt 0:01:48]} Rb7 {[%emt 0:00:35]} 45. c5+ {[%emt 0:00:37]} Kd7 {[%emt 0:00:28]} 46. Ke5 {[%emt 0:01:53]} Rc7 {[%emt 0:00:04]} 47. f4 {[%emt 0:01:38]} Kc8 {[%emt 0:01:49]} 48. Kd6 {[%emt 0:01:38]} Kb7 {[%emt 0:00:02]} 49. Rxa7+ 1-0

[Event "POL-chT 2nd League-3 2020"]
[Site "Poronin"]
[Date "2020.09.08"]
[Round "4.11"]
[White "Glatty, Zbigniew"]
[Black "Krawiec, Grzegorz"]
[Result "1-0"]
[ECO "B40"]
[WhiteElo "1857"]
[BlackElo "1824"]
[Annotator "NA"]
[PlyCount "83"]
[EventDate "2020.09.05"]
[EventType "team-tourn"]
[EventCountry "POL"]
[SourceTitle "playchess.com"]
[Source "ChessBase"]
[SourceQuality "1"]
[TimeControl "40/5400+30:900+30"]

1. e4 {[%emt 0:00:00]} c5 {[%emt 0:00:00]} 2. Nf3 {[%emt 0:00:00]} e6 {[%emt 0:00:00]} 3. d4 {[%emt 0:00:00]} cxd4 {[%emt 0:00:00]} 4. Nxd4 {[%emt 0:00:01]} Bc5 {[%emt 0:00:00]} 5. Nb3 {[%emt 0:00:20]} Bb6 {[%emt 0:00:04]} 6. Be2 {[%emt 0:19:25]} Ne7 {[%emt 0:02:00]} 7. c4 {[%emt 0:02:13]} O-O {[%emt 0:03:07]} 8. Nc3 {[%emt 0:01:14]} f5 {[%emt 0:00:58]} 9. c5 {[%emt 0:19:56]} Bc7 {[%emt 0:00:43]} 10. f4 {[%emt 0:01:16]} fxe4 {[%emt 0:02:32]} 11. O-O {[%emt 0:03:12]} b6 {[%emt 0:05:05]} 12. Nxe4 {[%emt 0:02:42]} bxc5 {[%emt 0:02:14]} 13. Nexc5 {[%emt 0:00:39]} d6 {[%emt 0:00:34]} 14. Ne4 {[%emt 0:01:52]} d5 {[%emt 0:01:29]} 15. Nec5 {[%emt 0:00:29]} Ng6 {[%emt 0:03:51]} 16. g3 {[%emt 0:03:10]} Ne7 {[%emt 0:09:28]} 17. Kg2 {[%emt 0:05:56]} Nf5 {[%emt 0:07:59]} 18. Nd4 {[%emt 0:06:49]} Qd6 {[%emt 0:11:35]} 19. Ncb3 {[%emt 0:07:08]} Bb6 {[%emt 0:12:51]} 20. Nxf5 {[%emt 0:02:55]} Rxf5 {[%emt 0:00:37]} 21. Nd4 {[%emt 0:00:51]} Rf7 {[%emt 0:07:23]} 22. Be3 {[%emt 0:01:13]} Ba6 {[%emt 0:05:52]} 23. Rc1 {[%emt 0:03:43]} Bxe2 {[%emt 0:08:55]} 24. Qxe2 {[%emt 0:01:56]} Bxd4 {[%emt 0:00:17]} 25. Bxd4 {[%emt 0:00:06]} Nc6 {[%emt 0:00:12]} 26. Bc5 {[%emt 0:00:40]} Qd7 {[%emt 0:00:02]} 27. Rfe1 {[%emt 0:00:49]} Re8 {[%emt 0:00:59]} 28. b4 {[%emt 0:03:52]} Qb7 {[%emt 0:04:01]} 29. a3 {[%emt 0:00:31]} a6 {[%emt 0:01:28]} 30. Qd3 {[%emt 0:00:42]} Rd7 {[%emt 0:04:20]} 31. Kf2 {[%emt 0:01:20]} e5 {[%emt 0:01:45]} 32. fxe5 {[%emt 0:03:08]} Rxe5 {[%emt 0:02:46]} 33. Kg1 {[%emt 0:01:28]} h6 {[%emt 0:01:55]} 34. Qg6 {[%emt 0:01:31]} Rf7 {[%emt 0:00:35]} 35. Rf1 {[%emt 0:03:10]} Rxf1+ {[%emt 0:01:14]} 36. Rxf1 {[%emt 0:00:01]} Re7 {[%emt 0:00:37]} 37. Bxe7 {[%emt 0:01:01]} Qxe7 {[%emt 0:00:19]} 38. Qxc6 {[%emt 0:01:48]} Qe3+ {[%emt 0:00:03]} 39. Rf2 {[%emt 0:00:10]} Qe1+ {[%emt 0:00:11]} 40. Kg2 {[%emt 0:00:00]} Qe4+ {[%emt 0:00:00]} 41. Kh3 {[%emt 0:00:33]} g5 {[%emt 0:03:01]} 42. Qxh6 {[%emt 0:03:59]} 1-0

[Event "POL-chT 2nd League-3 2020"]
[Site "Poronin"]
[Date "2020.09.08"]
[Round "4.12"]
[White "Karykowska, Anna"]
[Black "Kostecka, Marika"]
[Result "1-0"]
[ECO "B91"]
[WhiteElo "1999"]
[BlackElo "1917"]
[Annotator "ChessBase"]
[PlyCount "109"]
[EventDate "2020.09.05"]
[EventType "team-tourn"]
[EventCountry "POL"]
[SourceTitle "playchess.com"]
[Source "ChessBase"]
[SourceQuality "1"]
[TimeControl "40/5400+30:900+30"]

1. e4 {[%emt 0:00:00]} c5 {[%emt 0:00:00]} 2. Nf3 {[%emt 0:00:00]} d6 {[%emt 0:00:00]} 3. d4 {[%emt 0:00:00]} cxd4 {[%emt 0:00:00]} 4. Nxd4 {[%emt 0:00:00]} Nf6 {[%emt 0:00:00]} 5. Nc3 {[%emt 0:00:00]} a6 {[%emt 0:00:00]} 6. g3 {[%emt 0:00:08]} e5 {[%emt 0:00:08]} 7. Nb3 {[%emt 0:00:07]} Be7 {[%emt 0:00:34]} 8. Bg2 {[%emt 0:00:07]} b5 {[%emt 0:01:50]} 9. Nd5 {[%emt 0:03:48]} Nbd7 {[%emt 0:00:47]} 10. O-O {[%emt 0:04:13]} O-O {[%emt 0:02:37]} 11. Be3 {[%emt 0:02:30]} Bb7 {[%emt 0:08:32]} 12. a4 {[%emt 0:03:26]} Nxd5 {[%emt 0:08:16]} 13. exd5 {[%emt 0:00:08]} f5 {[%emt 0:05:23]} 14. axb5 {[%emt 0:01:46]} f4 {[%emt 0:06:32]} 15. Bd2 {[%emt 0:03:55]} axb5 {[%emt 0:01:22]} 16. Na5 {[%emt 0:01:59]} Qc7 {[%emt 0:09:33]} 17. Qg4 {[%emt 0:13:54]} Nc5 {[%emt 0:10:55]} 18. Nxb7 {[%emt 0:08:04]} Qxb7 {[%emt 0:05:08]} 19. Rxa8 {[%emt 0:03:22]} Rxa8 {[%emt 0:01:17]} 20. gxf4 {[%emt 0:01:20]} exf4 {[%emt 0:00:53]} 21. Bxf4 {[%emt 0:01:46]} Ra4 {[%emt 0:00:32]} 22. Qg3 {[%emt 0:04:16]} Qd7 {[%emt 0:02:33]} 23. b3 {[%emt 0:02:35]} Ra2 {[%emt 0:02:59]} 24. b4 {[%emt 0:02:47]} Na6 {[%emt 0:00:16]} 25. Qb3 {[%emt 0:02:17]} Ra4 {[%emt 0:00:04]} 26. Bd2 {[%emt 0:02:25]} Qg4 {[%emt 0:01:13]} 27. Qe3 {[%emt 0:00:45]} Qd7 {[%emt 0:02:42]} 28. Re1 {[%emt 0:01:30]} Bf6 {[%emt 0:00:38]} 29. Bh3 {[%emt 0:00:20]} Qd8 {[%emt 0:00:33]} 30. Qe6+ {[%emt 0:01:13]} Kf8 {[%emt 0:00:04]} 31. Bf4 {[%emt 0:03:18]} Be7 {[%emt 0:00:23]} 32. Bf5 {[%emt 0:07:39]} Nc7 {[%emt 0:01:13]} 33. Qe4 {[%emt 0:00:59]} h6 {[%emt 0:01:42]} 34. Bg6 {[%emt 0:01:11]} Ra8 {[%emt 0:01:24]} 35. Qf3 {[%emt 0:05:22]} Bf6 {[%emt 0:00:26]} 36. Qg3 {[%emt 0:00:27]} Ra6 {[%emt 0:00:59]} 37. Bh5 {[%emt 0:02:04]} Bg5 {[%emt 0:03:00]} 38. h4 {[%emt 0:04:58]} Bxf4 {[%emt 0:02:01]} 39. Qxf4+ {[%emt 0:00:03]} Qf6 {[%emt 0:00:22]} 40. Qg4 {[%emt 0:00:00]} Ra8 {[%emt 0:00:00]} 41. Qd7 {[%emt 0:09:46]} g6 {[%emt 0:01:30]} 42. Qxc7 {[%emt 0:04:53]} gxh5 {[%emt 0:01:28]} 43. Re6 {[%emt 0:03:17]} Qxh4 {[%emt 0:01:37]} 44. Qxd6+ {[%emt 0:01:22]} Kf7 {[%emt 0:00:05]} 45. Qc7+ {[%emt 0:00:51]} Kf8 {[%emt 0:00:18]} 46. Qc3 {[%emt 0:01:39]} Kf7 {[%emt 0:06:36]} 47. Qf3+ {[%emt 0:05:15]} Kg7 {[%emt 0:00:11]} 48. Qc3+ {[%emt 0:01:57]} Kf7 {[%emt 0:01:02]} 49. Re3 {[%emt 0:00:38]} Rg8+ {[%emt 0:01:44]} 50. Kf1 {[%emt 0:01:08]} Qh1+ {[%emt 0:00:23]} 51. Ke2 {[%emt 0:00:04]} Qxd5 {[%emt 0:04:01]} 52. Qc7+ {[%emt 0:00:48]} Kg6 {[%emt 0:04:08]} 53. Rg3+ {[%emt 0:00:35]} Kf6 {[%emt 0:00:56]} 54. Qf4+ {[%emt 0:00:43]} Ke7 {[%emt 0:00:33]} 55. Re3+ {[%emt 0:00:07]} 1-0